[Event "Paul Kerese Mälestusfestival 2022 Välkturniir"]
[Site "Paul Kerese Mälestusfestival 2022 Kiirturniir"]
[Date "????.??.??"]
[Round "7.1"]
[White "Agrest, Evgenij"]
[Black "Agafonov, Yuri"]
[Result "1-0"]
[TimeControl "3 min + 2 sek iga käigu eest"]
[WhiteTitle "GM"]
[WhiteElo "2574"]
[BlackElo "1913"]

1. Nf3 {[%clk 00:03:02]} Nf6 {[%clk 00:03:03]} {[%emt 00:00:01]} 2. b3 {[%clk
00:03:03]} g6 {[%clk 00:02:59]} {[%emt 00:00:07]} 3. Bb2 {[%clk 00:03:04]}
{[%emt 00:00:01]} Bg7 {[%clk 00:03:00]} 4. g3 {[%clk 00:03:05]} {[%emt
00:00:02]} O-O {[%clk 00:03:01]} {[%emt 00:00:01]} 5. Bg2 {[%clk 00:03:06]} d5
{[%clk 00:03:02]} {[%emt 00:00:02]} 6. O-O {[%clk 00:03:02]} {[%emt 00:00:06]}
c6 {[%clk 00:03:03]} 7. d3 {[%clk 00:02:59]} {[%emt 00:00:05]} Bg4 {[%clk
00:03:03]} {[%emt 00:00:03]} 8. Nbd2 {[%clk 00:03:00]} {[%emt 00:00:01]} Qc8
{[%clk 00:03:01]} {[%emt 00:00:04]} 9. Re1 {[%clk 00:02:59]} {[%emt 00:00:03]}
Bh3 {[%clk 00:03:01]} {[%emt 00:00:02]} 10. Bh1 {[%clk 00:03:00]} {[%emt
00:00:01]} h6 {[%clk 00:03:02]} {[%emt 00:00:02]} 11. e4 {[%clk 00:02:58]}
{[%emt 00:00:04]} Re8 {[%clk 00:03:02]} {[%emt 00:00:02]} 12. e5 {[%clk
00:02:51]} {[%emt 00:00:08]} Nh7 {[%clk 00:02:56]} {[%emt 00:00:08]} 13. c4
{[%clk 00:02:45]} {[%emt 00:00:08]} Bf5 {[%clk 00:02:43]} {[%emt 00:00:15]} 14.
Rc1 {[%clk 00:02:38]} {[%emt 00:00:09]} Qd7 {[%clk 00:02:36]} {[%emt 00:00:10]}
15. Qe2 {[%clk 00:02:30]} {[%emt 00:00:10]} Na6 {[%clk 00:02:34]} {[%emt
00:00:03]} 16. Nd4 {[%clk 00:02:12]} {[%emt 00:00:19]} Bg4 {[%clk 00:02:22]}
{[%emt 00:00:15]} 17. f3 {[%clk 00:02:07]} {[%emt 00:00:07]} Be6 {[%clk
00:02:23]} 18. a3 {[%clk 00:02:03]} {[%emt 00:00:07]} Rac8 {[%clk 00:02:24]}
{[%emt 00:00:01]} 19. f4 {[%clk 00:01:58]} {[%emt 00:00:07]} Red8 {[%clk
00:02:05]} {[%emt 00:00:22]} 20. Bf3 {[%clk 00:01:38]} {[%emt 00:00:21]} Nc5
{[%clk 00:01:47]} {[%emt 00:00:20]} 21. b4 {[%clk 00:01:35]} {[%emt 00:00:05]}
Na4 {[%clk 00:01:47]} {[%emt 00:00:02]} 22. Ba1 {[%clk 00:01:36]} dxc4 {[%clk
00:01:35]} {[%emt 00:00:14]} 23. dxc4 {[%clk 00:01:31]} {[%emt 00:00:06]} c5
{[%clk 00:01:32]} {[%emt 00:00:06]} 24. Nxe6 {[%clk 00:01:29]} {[%emt
00:00:03]} Qxe6 {[%clk 00:01:31]} {[%emt 00:00:03]} 25. Bxb7 {[%clk 00:01:23]}
{[%emt 00:00:08]} Rc7 {[%clk 00:01:07]} {[%emt 00:00:27]} 26. Bd5 {[%clk
00:01:23]} {[%emt 00:00:01]} Qb6 {[%clk 00:01:09]} 27. b5 {[%clk 00:01:07]}
{[%emt 00:00:19]} e6 {[%clk 00:01:09]} {[%emt 00:00:02]} 28. Bf3 {[%clk
00:01:02]} {[%emt 00:00:06]} Qa5 {[%clk 00:00:59]} {[%emt 00:00:12]} 29. Ne4
{[%clk 00:01:01]} {[%emt 00:00:03]} Nb6 {[%clk 00:00:59]} {[%emt 00:00:02]} 30.
Qe3 {[%clk 00:00:48]} {[%emt 00:00:14]} a6 {[%clk 00:00:45]} {[%emt 00:00:17]}
31. Nd6 {[%clk 00:00:34]} {[%emt 00:00:16]} axb5 {[%clk 00:00:43]} {[%emt
00:00:05]} 32. cxb5 {[%clk 00:00:33]} {[%emt 00:00:03]} Nd5 {[%clk 00:00:42]}
{[%emt 00:00:03]} 33. Qe2 {[%clk 00:00:28]} {[%emt 00:00:07]} Qxa3 {[%clk
00:00:41]} {[%emt 00:00:03]} 34. b6 {[%clk 00:00:29]} {[%emt 00:00:01]} Rcd7
{[%clk 00:00:42]} {[%emt 00:00:01]} 35. b7 {[%clk 00:00:29]} {[%emt 00:00:02]}
Bf8 {[%clk 00:00:34]} {[%emt 00:00:10]} 36. Rb1 {[%clk 00:00:20]} {[%emt
00:00:11]} Rb8 {[%clk 00:00:35]} 37. Bxd5 {[%clk 00:00:17]} {[%emt 00:00:06]}
exd5 {[%clk 00:00:36]} 38. Qb5 {[%clk 00:00:17]} {[%emt 00:00:02]} Rc7 {[%clk
00:00:30]} {[%emt 00:00:08]} 39. Qb6 {[%clk 00:00:16]} {[%emt 00:00:03]} Rd7
{[%clk 00:00:30]} {[%emt 00:00:02]} 40. Qc6 {[%clk 00:00:16]} {[%emt 00:00:01]}
Bxd6 {[%clk 00:00:20]} {[%emt 00:00:13]} 41. Qxd7 {[%clk 00:00:16]} {[%emt
00:00:02]} Bf8 {[%clk 00:00:20]} {[%emt 00:00:02]} 42. Qc8 {[%clk 00:00:17]}
{[%emt 00:00:02]} Qa7 {[%clk 00:00:20]} {[%emt 00:00:02]} 43. Kg2 {[%clk
00:00:16]} {[%emt 00:00:03]} d4 {[%clk 00:00:21]} 44. Qc6 {[%clk 00:00:16]}
{[%emt 00:00:02]} g5 {[%clk 00:00:21]} {[%emt 00:00:02]} 45. e6 {[%clk
00:00:17]} {[%emt 00:00:01]} Nf6 {[%clk 00:00:20]} {[%emt 00:00:03]} 46. e7
{[%clk 00:00:18]} {[%emt 00:00:02]} Bg7 {[%clk 00:00:20]} {[%emt 00:00:02]} 47.
e8=Q+ {[%clk 00:00:16]} {[%emt 00:00:04]} Nxe8 {[%clk 00:00:21]} {[%emt
00:00:01]} 48. Rxe8+ {[%clk 00:00:17]} {[%emt 00:00:01]} Rxe8 {[%clk 00:00:22]}
{[%emt 00:00:01]} 49. Qxe8+ {[%clk 00:00:18]} {[%emt 00:00:01]} Kh7 {[%clk
00:00:23]} 50. b8=Q {[%clk 00:00:18]} {[%emt 00:00:02]} Qa2+ {[%clk 00:00:24]}
{[%emt 00:00:01]} 51. Qb2 {[%clk 00:00:19]} {[%emt 00:00:01]} 1-0

[Event "Paul Kerese Mälestusfestival 2022 Välkturniir"]
[Site "Paul Kerese Mälestusfestival 2022 Kiirturniir"]
[Date "????.??.??"]
[Round "7.2"]
[White "Maiorov, Nikita"]
[Black "Chukavin, Kirill"]
[Result "1-0"]
[TimeControl "3 min + 2 sek iga käigu eest"]
[WhiteTitle "GM"]
[BlackTitle "FM"]
[WhiteElo "2417"]
[BlackElo "2280"]

1. d4 {[%clk 00:03:02]} Nf6 {[%clk 00:03:04]} 2. c4 {[%clk 00:03:02]} {[%emt
00:00:02]} e6 {[%clk 00:03:05]} 3. Nf3 {[%clk 00:03:02]} {[%emt 00:00:02]} d5
{[%clk 00:03:06]} {[%emt 00:00:01]} 4. Nc3 {[%clk 00:03:02]} {[%emt 00:00:02]}
c6 {[%clk 00:03:07]} {[%emt 00:00:01]} 5. e3 {[%clk 00:03:02]} {[%emt
00:00:02]} Nbd7 {[%clk 00:03:09]} 6. Qc2 {[%clk 00:03:03]} {[%emt 00:00:02]}
Bd6 {[%clk 00:03:10]} {[%emt 00:00:01]} 7. Be2 {[%clk 00:03:03]} O-O {[%clk
00:03:06]} {[%emt 00:00:06]} 8. O-O {[%clk 00:03:03]} {[%emt 00:00:03]} dxc4
{[%clk 00:03:07]} {[%emt 00:00:02]} 9. Bxc4 {[%clk 00:03:03]} b5 {[%clk
00:03:07]} {[%emt 00:00:02]} 10. Be2 {[%clk 00:03:02]} {[%emt 00:00:03]} Bb7
{[%clk 00:03:03]} {[%emt 00:00:07]} 11. Rd1 {[%clk 00:03:02]} {[%emt 00:00:01]}
Qc7 {[%clk 00:02:46]} {[%emt 00:00:20]} 12. Bd2 {[%clk 00:03:02]} {[%emt
00:00:01]} a5 {[%clk 00:02:36]} {[%emt 00:00:12]} 13. Rac1 {[%clk 00:02:59]}
{[%emt 00:00:05]} Rac8 {[%clk 00:02:37]} {[%emt 00:00:02]} 14. Qb1 {[%clk
00:02:05]} {[%emt 00:00:55]} Qb8 {[%clk 00:02:19]} {[%emt 00:00:20]} 15. Ne4
{[%clk 00:01:33]} {[%emt 00:00:34]} Nxe4 {[%clk 00:02:15]} {[%emt 00:00:06]} 16.
Qxe4 {[%clk 00:01:34]} {[%emt 00:00:01]} a4 {[%clk 00:01:49]} {[%emt 00:00:29]}
17. Bd3 {[%clk 00:01:29]} {[%emt 00:00:07]} Nf6 {[%clk 00:01:16]} {[%emt
00:00:35]} 18. Qh4 {[%clk 00:01:29]} {[%emt 00:00:01]} c5 {[%clk 00:00:54]}
{[%emt 00:00:24]} 19. e4 {[%clk 00:01:23]} {[%emt 00:00:08]} Be7 {[%clk
00:00:10]} {[%emt 00:00:47]} 20. Bg5 {[%clk 00:01:16]} {[%emt 00:00:09]} h6
{[%clk 00:00:06]} {[%emt 00:00:06]} 21. Bxh6 {[%clk 00:01:08]} {[%emt
00:00:09]} gxh6 {[%clk 00:00:03]} {[%emt 00:00:06]} 22. Qxh6 {[%clk 00:01:08]}
{[%emt 00:00:02]} Bxe4 {[%clk 00:00:04]} {[%emt 00:00:02]} 23. Ng5 {[%clk
00:01:07]} {[%emt 00:00:02]} Qf4 {[%clk 00:00:04]} {[%emt 00:00:03]} 24. Bxe4
{[%clk 00:01:06]} {[%emt 00:00:03]} cxd4 {[%clk 00:00:04]} {[%emt 00:00:02]} 25.
Bh7+ {[%emt 00:00:04]} Kh8 26. Nxf7+ {[%clk 00:01:02]} {[%emt 00:00:03]} 1-0

[Event "Paul Kerese Mälestusfestival 2022 Välkturniir"]
[Site "Paul Kerese Mälestusfestival 2022 Kiirturniir"]
[Date "????.??.??"]
[Round "7.3"]
[White "Petrovskis, Olegs"]
[Black "Bernotas, Arturs"]
[Result "0-1"]
[TimeControl "3 min + 2 sek iga käigu eest"]
[BlackTitle "FM"]
[WhiteElo "1984"]
[BlackElo "2382"]

1. d4 {[%clk 00:03:03]} {[%emt 00:05:21]} Nf6 {[%clk 00:02:58]} {[%emt
00:01:02]} 2. Nf3 {[%clk 00:03:04]} e6 {[%clk 00:02:54]} {[%emt 00:00:06]} 3.
c4 {[%clk 00:03:05]} {[%emt 00:00:01]} d5 {[%clk 00:02:53]} {[%emt 00:00:03]} 4.
Nc3 {[%clk 00:03:06]} c6 {[%clk 00:02:54]} {[%emt 00:00:02]} 5. cxd5 {[%clk
00:03:02]} {[%emt 00:00:06]} exd5 {[%clk 00:02:53]} {[%emt 00:00:02]} 6. Bg5
{[%clk 00:03:02]} Nbd7 {[%clk 00:02:39]} {[%emt 00:00:16]} 7. Qc2 {[%clk
00:03:01]} {[%emt 00:00:03]} Bd6 {[%clk 00:02:34]} {[%emt 00:00:08]} 8. e3
{[%clk 00:03:01]} {[%emt 00:00:02]} Nf8 {[%clk 00:02:34]} {[%emt 00:00:02]} 9.
Bd3 {[%clk 00:02:57]} {[%emt 00:00:05]} Ng6 {[%clk 00:02:34]} {[%emt 00:00:02]}
10. h4 {[%clk 00:02:42]} {[%emt 00:00:17]} h6 {[%clk 00:02:06]} {[%emt
00:00:30]} 11. O-O-O {[%clk 00:02:10]} {[%emt 00:00:34]} hxg5 {[%clk 00:01:19]}
{[%emt 00:00:50]} 12. Bxg6 {[%clk 00:01:47]} {[%emt 00:00:24]} gxh4 {[%clk
00:00:54]} {[%emt 00:00:28]} 13. Ne5 {[%clk 00:01:42]} {[%emt 00:00:07]} Bxe5
{[%clk 00:00:46]} {[%emt 00:00:10]} 14. dxe5 {[%clk 00:01:41]} {[%emt
00:00:03]} Ng4 {[%clk 00:00:46]} {[%emt 00:00:02]} 15. Be4 {[%clk 00:01:10]}
{[%emt 00:00:33]} Qg5 {[%clk 00:00:38]} {[%emt 00:00:10]} 16. f4 {[%clk
00:00:52]} {[%emt 00:00:20]} Qe7 {[%clk 00:00:35]} {[%emt 00:00:04]} 17. Bxd5
{[%clk 00:00:36]} {[%emt 00:00:18]} Nxe3 {[%clk 00:00:34]} {[%emt 00:00:03]} 18.
Qa4 {[%clk 00:00:37]} {[%emt 00:00:01]} Nxd1 {[%clk 00:00:31]} {[%emt
00:00:05]} 19. Rxd1 {[%clk 00:00:22]} {[%emt 00:00:17]} O-O {[%clk 00:00:26]}
{[%emt 00:00:07]} 20. Be4 {[%clk 00:00:21]} {[%emt 00:00:03]} Bg4 {[%clk
00:00:22]} {[%emt 00:00:07]} 21. Rh1 {[%clk 00:00:18]} {[%emt 00:00:04]} Rfd8
{[%clk 00:00:22]} {[%emt 00:00:03]} 22. Bc2 {[%clk 00:00:19]} Qc5 {[%clk
00:00:19]} {[%emt 00:00:05]} 23. Qe4 {[%clk 00:00:19]} {[%emt 00:00:03]} g6
{[%clk 00:00:18]} {[%emt 00:00:04]} 24. g3 {[%clk 00:00:08]} {[%emt 00:00:12]}
h3 {[%clk 00:00:16]} {[%emt 00:00:03]} 25. e6 {[%clk 00:00:04]} {[%emt
00:00:06]} Bxe6 {[%clk 00:00:16]} {[%emt 00:00:03]} 0-1

[Event "Paul Kerese Mälestusfestival 2022 Välkturniir"]
[Site "Paul Kerese Mälestusfestival 2022 Kiirturniir"]
[Date "????.??.??"]
[Round "7.4"]
[White "Golubovskis, Maksims"]
[Black "Krilovs, Nikolajs"]
[Result "0-1"]
[TimeControl "3 min + 2 sek iga käigu eest"]
[WhiteElo "2163"]
[BlackElo "1971"]

1. e4 {[%clk 00:03:03]} e6 {[%clk 00:03:03]} {[%emt 00:00:02]} 2. d4 {[%clk
00:03:05]} d5 {[%emt 00:00:02]} 3. Nc3 Bb4 {[%clk 00:03:04]} {[%emt 00:00:01]}
4. e5 {[%clk 00:03:07]} {[%emt 00:00:02]} c5 {[%clk 00:03:05]} {[%emt
00:00:01]} 5. a3 {[%clk 00:03:09]} cxd4 {[%clk 00:03:05]} {[%emt 00:00:01]} 6.
axb4 {[%clk 00:02:54]} {[%emt 00:00:17]} dxc3 {[%clk 00:03:06]} 7. bxc3 {[%clk
00:02:55]} Qc7 {[%clk 00:03:03]} {[%emt 00:00:05]} 8. Qd4 {[%clk 00:02:37]}
{[%emt 00:00:20]} Nc6 {[%clk 00:02:55]} {[%emt 00:00:11]} 9. Bb5 {[%clk
00:02:38]} Nge7 {[%clk 00:02:56]} {[%emt 00:00:01]} 10. Nf3 {[%clk 00:02:31]}
{[%emt 00:00:09]} O-O {[%clk 00:02:37]} {[%emt 00:00:21]} 11. Bxc6 {[%clk
00:02:22]} {[%emt 00:00:11]} Nxc6 {[%clk 00:02:27]} {[%emt 00:00:12]} 12. Qf4
{[%clk 00:02:06]} {[%emt 00:00:19]} d4 {[%clk 00:02:22]} {[%emt 00:00:07]} 13.
O-O {[%clk 00:01:53]} {[%emt 00:00:14]} dxc3 {[%clk 00:02:09]} {[%emt
00:00:16]} 14. Qc4 {[%clk 00:01:55]} Qb6 {[%clk 00:01:56]} {[%emt 00:00:15]} 15.
b5 {[%clk 00:01:49]} {[%emt 00:00:08]} Ne7 {[%clk 00:01:40]} {[%emt 00:00:18]}
16. Be3 {[%clk 00:01:48]} {[%emt 00:00:02]} Qd8 {[%clk 00:01:40]} {[%emt
00:00:03]} 17. Bxa7 {[%clk 00:01:15]} {[%emt 00:00:35]} Bd7 {[%clk 00:01:32]}
{[%emt 00:00:10]} 18. Bc5 {[%clk 00:01:14]} {[%emt 00:00:03]} Rc8 {[%clk
00:01:25]} {[%emt 00:00:09]} 19. Bxe7 {[%clk 00:00:30]} {[%emt 00:00:46]} Rxc4
{[%clk 00:01:06]} {[%emt 00:00:22]} 20. Bxd8 {[%clk 00:00:31]} Rxd8 {[%clk
00:01:06]} {[%emt 00:00:01]} 21. Rfd1 {[%clk 00:00:29]} {[%emt 00:00:05]} Kf8
{[%clk 00:00:49]} {[%emt 00:00:19]} 22. Ra7 {[%clk 00:00:25]} {[%emt 00:00:06]}
h6 {[%clk 00:00:27]} {[%emt 00:00:25]} 23. Rxb7 {[%clk 00:00:25]} {[%emt
00:00:01]} Ke8 {[%clk 00:00:28]} 24. h3 {[%clk 00:00:23]} {[%emt 00:00:05]} Rb4
{[%clk 00:00:29]} {[%emt 00:00:01]} 25. b6 {[%clk 00:00:21]} {[%emt 00:00:04]}
Bc6 {[%clk 00:00:25]} {[%emt 00:00:06]} 26. Rxd8+ {[%clk 00:00:21]} {[%emt
00:00:02]} Kxd8 {[%clk 00:00:26]} {[%emt 00:00:01]} 27. Rxf7 {[%clk 00:00:18]}
{[%emt 00:00:05]} Rxb6 {[%clk 00:00:21]} {[%emt 00:00:07]} 28. Rxg7 {[%clk
00:00:09]} {[%emt 00:00:11]} Bxf3 {[%clk 00:00:22]} {[%emt 00:00:01]} 29. gxf3
{[%clk 00:00:10]} Rb2 {[%clk 00:00:23]} 30. Rg4 {[%clk 00:00:05]} {[%emt
00:00:07]} Rxc2 {[%clk 00:00:22]} {[%emt 00:00:03]} 31. Rc4 {[%clk 00:00:06]}
Rc1+ {[%emt 00:00:05]} 32. Kg2 c2 {[%clk 00:00:20]} {[%emt 00:00:01]} 33. f4
{[%clk 00:00:08]} {[%emt 00:00:01]} Ke7 {[%clk 00:00:18]} {[%emt 00:00:05]} 34.
Kf3 {[%clk 00:00:09]} Kf7 {[%clk 00:00:16]} {[%emt 00:00:04]} 35. Ke2 {[%clk
00:00:04]} {[%emt 00:00:07]} Kg6 {[%clk 00:00:11]} {[%emt 00:00:07]} 36. Rc6
{[%clk 00:00:03]} {[%emt 00:00:03]} Kf5 {[%clk 00:00:12]} {[%emt 00:00:01]} 37.
Kd2 {[%clk 00:00:04]} {[%emt 00:00:02]} Rf1 {[%clk 00:00:12]} {[%emt 00:00:01]}
38. Kxc2 {[%emt 00:00:02]} Rxf2+ {[%clk 00:00:12]} 39. Kd3 {[%clk 00:00:05]}
{[%emt 00:00:01]} Rxf4 {[%clk 00:00:12]} {[%emt 00:00:02]} 40. Rc8 {[%clk
00:00:05]} {[%emt 00:00:02]} Kxe5 {[%clk 00:00:13]} {[%emt 00:00:02]} 41. Rh8
{[%clk 00:00:04]} {[%emt 00:00:03]} Rf3+ {[%clk 00:00:13]} {[%emt 00:00:02]} 42.
Ke2 {[%clk 00:00:04]} {[%emt 00:00:02]} Rxh3 {[%clk 00:00:13]} 43. Kf2 {[%clk
00:00:05]} Ke4 {[%clk 00:00:14]} {[%emt 00:00:02]} 44. Kg2 {[%clk 00:00:07]}
{[%emt 00:00:01]} Rh5 {[%clk 00:00:15]} 45. Kg3 {[%clk 00:00:08]} e5 {[%clk
00:00:15]} {[%emt 00:00:03]} 46. Kg4 {[%clk 00:00:09]} Rg5 {[%clk 00:00:16]} 47.
Kh4 {[%clk 00:00:10]} {[%emt 00:00:02]} Rg1 {[%clk 00:00:17]} 0-1

[Event "Paul Kerese Mälestusfestival 2022 Välkturniir"]
[Site "Paul Kerese Mälestusfestival 2022 Kiirturniir"]
[Date "????.??.??"]
[Round "7.5"]
[White "Paikens, Reinis"]
[Black "Teelem, Lauri"]
[Result "1-0"]
[TimeControl "3 min + 2 sek iga käigu eest"]
[WhiteElo "1678"]
[BlackElo "2012"]

1. c4 {[%clk 00:03:03]} Nf6 {[%clk 00:03:03]} 2. Nc3 {[%clk 00:03:04]} {[%emt
00:00:01]} g6 {[%clk 00:03:04]} {[%emt 00:00:01]} 3. g3 {[%clk 00:03:05]} Bg7
{[%clk 00:03:05]} 4. Bg2 {[%clk 00:03:06]} {[%emt 00:00:01]} O-O {[%clk
00:03:06]} {[%emt 00:00:02]} 5. e3 {[%clk 00:03:07]} c5 {[%clk 00:03:05]}
{[%emt 00:00:03]} 6. Nge2 {[%clk 00:03:08]} {[%emt 00:00:01]} d6 {[%clk
00:03:03]} {[%emt 00:00:04]} 7. O-O {[%clk 00:03:08]} {[%emt 00:00:02]} Nc6
{[%clk 00:02:57]} {[%emt 00:00:08]} 8. d4 {[%clk 00:03:09]} {[%emt 00:00:01]}
cxd4 {[%clk 00:02:53]} {[%emt 00:00:06]} 9. exd4 {[%clk 00:03:10]} Bd7 {[%clk
00:02:40]} {[%emt 00:00:15]} 10. Be3 {[%clk 00:03:10]} {[%emt 00:00:01]} Rc8
{[%clk 00:02:39]} {[%emt 00:00:03]} 11. a3 {[%clk 00:02:59]} {[%emt 00:00:14]}
Na5 {[%clk 00:02:38]} {[%emt 00:00:02]} 12. b3 {[%clk 00:02:59]} {[%emt
00:00:02]} b6 {[%clk 00:02:28]} {[%emt 00:00:13]} 13. Rc1 {[%clk 00:02:59]}
{[%emt 00:00:03]} Bc6 {[%clk 00:02:26]} {[%emt 00:00:03]} 14. d5 {[%clk
00:02:31]} {[%emt 00:00:30]} Bd7 {[%clk 00:02:25]} {[%emt 00:00:01]} 15. Nd4
{[%clk 00:02:24]} {[%emt 00:00:10]} a6 {[%clk 00:02:20]} {[%emt 00:00:08]} 16.
Nb1 {[%clk 00:02:06]} {[%emt 00:00:18]} Ng4 {[%clk 00:02:13]} {[%emt 00:00:11]}
17. Nd2 {[%clk 00:02:01]} {[%emt 00:00:07]} Nxe3 {[%clk 00:02:04]} {[%emt
00:00:11]} 18. fxe3 {[%clk 00:02:02]} {[%emt 00:00:01]} b5 {[%clk 00:01:51]}
{[%emt 00:00:15]} 19. cxb5 {[%clk 00:01:45]} {[%emt 00:00:19]} axb5 {[%clk
00:01:50]} {[%emt 00:00:03]} 20. b4 {[%clk 00:01:43]} {[%emt 00:00:04]} Nc4
{[%clk 00:01:48]} {[%emt 00:00:04]} 21. Nxc4 {[%clk 00:01:43]} {[%emt
00:00:02]} bxc4 {[%clk 00:01:42]} {[%emt 00:00:09]} 22. Nc6 {[%clk 00:01:43]}
{[%emt 00:00:02]} Bxc6 {[%clk 00:01:23]} {[%emt 00:00:21]} 23. dxc6 {[%clk
00:01:44]} c3 {[%clk 00:01:17]} {[%emt 00:00:07]} 24. Qd3 {[%clk 00:01:31]}
{[%emt 00:00:15]} e6 {[%clk 00:01:16]} {[%emt 00:00:04]} 25. b5 {[%clk
00:01:25]} {[%emt 00:00:08]} d5 {[%clk 00:01:16]} {[%emt 00:00:02]} 26. e4
{[%clk 00:01:25]} {[%emt 00:00:02]} Qb6+ {[%clk 00:01:11]} {[%emt 00:00:07]} 27.
Kh1 {[%clk 00:01:26]} {[%emt 00:00:01]} d4 {[%clk 00:01:05]} {[%emt 00:00:08]}
28. Ra1 {[%clk 00:01:21]} {[%emt 00:00:06]} Ra8 {[%clk 00:01:05]} {[%emt
00:00:03]} 29. a4 {[%clk 00:01:22]} {[%emt 00:00:01]} Ra5 {[%clk 00:01:01]}
{[%emt 00:00:05]} 30. Qc4 {[%clk 00:01:19]} {[%emt 00:00:05]} Be5 {[%clk
00:00:55]} {[%emt 00:00:08]} 31. Ra2 {[%clk 00:01:03]} {[%emt 00:00:19]} Rd8
{[%clk 00:00:54]} {[%emt 00:00:03]} 32. Rd1 {[%clk 00:01:01]} {[%emt 00:00:04]}
Kg7 {[%clk 00:00:48]} {[%emt 00:00:07]} 33. Bf1 {[%clk 00:00:43]} {[%emt
00:00:20]} h5 {[%clk 00:00:48]} {[%emt 00:00:02]} 34. Qb4 {[%clk 00:00:39]}
{[%emt 00:00:06]} h4 {[%clk 00:00:38]} {[%emt 00:00:12]} 35. Qe7 {[%clk
00:00:37]} {[%emt 00:00:05]} hxg3 {[%clk 00:00:22]} {[%emt 00:00:18]} 36. hxg3
{[%clk 00:00:31]} {[%emt 00:00:08]} Bxg3 {[%clk 00:00:18]} {[%emt 00:00:06]} 37.
Bc4 {[%clk 00:00:32]} {[%emt 00:00:01]} Ra7 {[%clk 00:00:10]} {[%emt 00:00:09]}
38. a5 {[%clk 00:00:20]} {[%emt 00:00:14]} Rxe7 {[%clk 00:00:10]} {[%emt
00:00:02]} 39. axb6 {[%clk 00:00:21]} Rb8 {[%clk 00:00:10]} {[%emt 00:00:01]}
40. Ra7 {[%clk 00:00:18]} {[%emt 00:00:06]} Ree8 {[%clk 00:00:08]} {[%emt
00:00:05]} 41. b7 {[%clk 00:00:19]} Bc7 {[%clk 00:00:07]} {[%emt 00:00:03]} 42.
Ra6 {[%clk 00:00:19]} {[%emt 00:00:03]} e5 {[%clk 00:00:06]} {[%emt 00:00:02]}
43. b6 {[%clk 00:00:19]} {[%emt 00:00:01]} Re7 {[%clk 00:00:05]} {[%emt
00:00:03]} 44. bxc7 {[%clk 00:00:14]} {[%emt 00:00:08]} Rxc7 {[%clk 00:00:06]}
{[%emt 00:00:01]} 45. Ra8 {[%clk 00:00:09]} {[%emt 00:00:06]} c2 {[%clk
00:00:04]} {[%emt 00:00:04]} 46. Rc1 {[%clk 00:00:11]} Rbxb7 {[%clk 00:00:04]}
{[%emt 00:00:02]} 47. cxb7 {[%clk 00:00:11]} {[%emt 00:00:02]} Rxb7 {[%emt
00:00:02]} 48. Rxc2 {[%clk 00:00:11]} {[%emt 00:00:01]} f5 {[%clk 00:00:04]}
{[%emt 00:00:02]} 49. exf5 gxf5 {[%clk 00:00:05]} 50. Rg2+ {[%clk 00:00:08]}
{[%emt 00:00:04]} Kf6 {[%clk 00:00:05]} {[%emt 00:00:02]} 51. Rh8 {[%clk
00:00:08]} {[%emt 00:00:01]} e4 {[%clk 00:00:06]} {[%emt 00:00:01]} 52. Rh5
{[%clk 00:00:05]} {[%emt 00:00:04]} Rc7 {[%clk 00:00:07]} {[%emt 00:00:02]} 53.
Bb3 {[%clk 00:00:04]} {[%emt 00:00:04]} Rc3 {[%clk 00:00:08]} 54. Bg8 {[%clk
00:00:03]} {[%emt 00:00:03]} d3 {[%clk 00:00:08]} {[%emt 00:00:02]} 55. Bh7
{[%clk 00:00:04]} {[%emt 00:00:01]} Rc1+ {[%clk 00:00:08]} {[%emt 00:00:02]} 56.
Kh2 {[%clk 00:00:05]} Rf1 {[%clk 00:00:09]} {[%emt 00:00:01]} 57. Rg6+ {[%clk
00:00:03]} {[%emt 00:00:05]} Ke5 {[%clk 00:00:09]} {[%emt 00:00:01]} 58. Rgg5
{[%clk 00:00:04]} {[%emt 00:00:02]} e3 {[%clk 00:00:09]} {[%emt 00:00:02]} 59.
Bxf5 {[%emt 00:00:02]} e2 {[%clk 00:00:10]} {[%emt 00:00:01]} 60. Bxd3+ {[%clk
00:00:05]} {[%emt 00:00:01]} Kd4 {[%clk 00:00:10]} {[%emt 00:00:01]} 61. Bxe2
{[%clk 00:00:06]} Rf2+ {[%clk 00:00:10]} {[%emt 00:00:01]} 62. Kg3 {[%clk
00:00:06]} {[%emt 00:00:02]} Rxe2 {[%clk 00:00:11]} {[%emt 00:00:01]} 63. Rg4+
{[%clk 00:00:07]} {[%emt 00:00:01]} Ke3 {[%clk 00:00:12]} 64. Re5+ {[%clk
00:00:08]} 1-0